bitfinex/quotes_ETHUSD_20260203
["timestamp","ask_amount","ask_price","bid_price","bid_amount"]
[1770149905185,0.14301349,2206.1,2204.7,1.20104657]
[1770149905373,0.00684759,2206.0,2204.7,1.20104657]
[1770149905571,0.14301349,2206.1,2204.7,13.35287629]
[1770149905572,0.1361659,2206.1,2204.7,13.35287629]
[1770149905777,0.00684759,2205.8,2204.7,12.15182972]
[1770149905967,0.00684759,2205.9,2204.7,12.15182972]
[1770149906168,0.0011,2205.3,2204.6,0.952]
[1770149906763,0.00684759,2205.0,2204.2,12.15182972]
[1770149907065,0.00684759,2205.1,2204.0,1.20204657]
[1770149907289,0.00684759,2205.1,2204.0,0.001]
[1770149908095,0.00684759,2204.7,2204.0,0.001]
[1770149908710,0.00684759,2204.6,2204.0,0.001]
[1770149908873,0.00684759,2204.4,2204.0,0.001]
[1770149909309,0.98222032,2205.8,2204.9,12.15182972]
[1770149909502,0.98222032,2205.8,2204.1,0.951]
[1770149909503,0.2611635,2205.8,2204.8,1.20104657]
[1770149909799,0.1361659,2206.1,2204.8,1.20104657]
[1770149909800,0.1361659,2206.1,2204.9,13.35287629]
[1770149909972,0.1361659,2206.1,2205.0,1.20104657]
[1770149910372,0.1361659,2206.1,2204.9,1.20104657]
[1770149910561,0.1361659,2206.1,2205.0,0.28269403]
[1770149911001,0.1361659,2206.1,2205.0,12.15182972]
[1770149911225,0.00684759,2207.1,2205.4,12.15182972]
[1770149911363,0.00684759,2207.1,2205.5,13.35287629]
[1770149911877,0.00684759,2207.0,2205.5,13.35287629]
[1770149912280,0.00684759,2207.7,2205.7,12.15182972]
[1770149912604,0.00684759,2207.9,2206.2,1.20104657]
[1770149912792,0.00684759,2207.9,2206.2,2.15204657]
[1770149912793,0.00684759,2207.4,2206.2,2.15204657]
[1770149912983,0.00684759,2207.3,2206.2,0.951]
[1770149913501,0.00684759,2206.8,2205.6,1.20104657]
[1770149913870,0.00684759,2207.2,2205.7,12.15182972]
[1770149914174,0.00684759,2207.0,2205.7,12.15182972]
[1770149914387,0.00684759,2206.9,2205.7,12.15182972]
[1770149914586,0.00684759,2206.7,2205.4,2.15204657]
[1770149914789,0.00684759,2206.7,2205.5,0.37779403]
[1770149915307,0.00684759,2206.4,2205.5,0.37779403]
[1770149915468,0.00684759,2206.4,2205.4,0.951]
[1770149916184,0.81584759,2207.2,2205.4,13.10282972]
[1770149916372,1.13937926,2207.5,2205.7,12.15182972]
[1770149916576,0.00684759,2207.0,2205.7,12.15182972]
[1770149916778,0.00684759,2206.8,2205.7,12.15182972]
[1770149917069,0.00684759,2206.8,2205.4,0.951]
[1770149917070,0.00684759,2206.6,2205.4,0.951]
[1770149917366,0.00684759,2206.7,2205.4,0.951]
[1770149917367,0.00684759,2207.5,2205.4,14.23638384]
[1770149917616,0.00684759,2207.0,2205.4,13.10282972]
[1770149917781,0.00684759,2206.9,2205.4,13.10282972]
[1770149917960,0.00684759,2206.9,2205.4,14.23640808]
[1770149918167,0.00684759,2206.9,2205.5,12.15182972]
[1770149918385,0.81584759,2207.2,2205.7,12.15182972]
[1770149918386,0.00684759,2207.2,2205.7,12.15182972]
[1770149918591,0.00684759,2207.2,2205.6,0.2335703]
[1770149918592,0.00684759,2207.2,2205.9,12.15182972]
[1770149918773,0.00684759,2207.3,2206.0,0.951]
[1770149918985,0.00684759,2207.2,2206.0,0.951]
[1770149919184,0.0011,2206.7,2206.0,0.951]
[1770149919970,0.0011,2206.9,2206.0,13.10282972]
[1770149920168,11.7123848,2208.1,2206.0,14.23608643]
[1770149920169,0.00684759,2207.7,2206.0,14.23608643]
[1770149920385,4.52849315,2208.3,2206.0,14.23608643]
[1770149920386,17.10311496,2210.5,2206.4,1.21304709]
[1770149920709,0.00684759,2212.0,2211.5,0.23674677]
[1770149920920,12.83767375,2212.5,2211.5,0.23674677]
[1770149920921,0.00684759,2213.6,2211.6,1.9187131]
[1770149921197,0.00684759,2214.0,2211.6,1.9187131]
[1770149921198,0.00684759,2214.0,2213.5,7.97390941]
[1770149921399,4.46118603,2214.4,2213.5,7.97390941]
[1770149921400,11.7123848,2215.0,2213.6,1.9187131]
[1770149921614,19.85659353,2214.9,2214.7,3.75321925]
[1770149921770,1.17123848,2214.9,2214.8,0.9677131]
[1770149921971,11.7123848,2216.3,2214.6,0.951]
[1770149922292,9.89375092,2216.9,2213.6,1.12937384]
[1770149922293,12.8828516,2216.2,2215.8,3.9416844]
[1770149922491,12.8828516,2216.2,2214.7,11.19937944]
[1770149922671,11.7123848,2215.7,2215.1,1.5761979]
[1770149922875,11.7123848,2215.7,2214.9,1.57615496]
[1770149922876,0.00684759,2215.5,2214.9,1.57615496]
[1770149923101,0.00684759,2215.4,2214.7,10.24837944]
[1770149923309,1.03823337,2215.4,2214.7,10.24837944]
[1770149923471,1.03823337,2215.4,2214.0,0.951]
[1770149923670,1.03823337,2215.4,2214.0,0.2335703]
[1770149924384,1.03823337,2215.4,2213.7,0.95]
[1770149924795,0.00684759,2216.0,2213.7,0.95]
[1770149924995,0.00684759,2216.0,2214.7,1.1288011]
[1770149925211,11.7123848,2216.7,2214.8,0.95]
[1770149925415,11.7123848,2216.7,2214.3,1.35480617]
[1770149925416,11.7123848,2216.7,2214.9,11.5419]
[1770149925614,1.17192324,2216.6,2214.9,11.5419]
[1770149925814,0.00684759,2216.1,2214.9,11.5419]
[1770149926216,11.71923239,2216.2,2214.9,10.8648453]
[1770149926418,11.71923239,2216.2,2213.0,4.51863687]
[1770149926419,11.71923239,2215.8,2213.8,11.5419]
[1770149926736,12.5593848,2215.8,2213.9,0.2335703]
[1770149926893,1.25593848,2215.7,2214.0,0.95]
[1770149927428,2.39110034,2215.7,2213.9,12.71944703]
[1770149927727,14.1034871,2215.7,2213.9,13.66844703]
[1770149928021,12.96832328,2215.7,2213.9,13.66844703]
[1770149928225,1.29683233,2215.6,2214.0,2.3158447]
[1770149928605,1.29683233,2215.6,2213.8,11.7754703]
[1770149928802,0.00684759,2216.2,2213.9,1.1825703]
[1770149929130,1.5821251,2215.6,2214.1,0.2335703]
[1770149929345,1.5821251,2215.6,2214.6,0.2335703]
[1770149929626,0.849,2216.4,2214.6,0.2335703]
[1770149929825,0.849,2216.4,2214.8,0.2335703]
[1770149930326,0.849,2216.4,2214.3,14.40980794]
[1770149930327,0.00684759,2216.1,2214.3,11.5419]
[1770149930506,0.00684759,2215.6,2214.3,11.5419]
[1770149930709,0.00684759,2215.5,2214.3,11.5419]
[1770149931197,0.00684759,2215.6,2214.3,11.5419]
[1770149931404,0.00684759,2214.7,2213.7,11.5419]
[1770149931636,0.00684759,2214.4,2212.7,0.948]
[1770149931809,12.67196781,2215.0,2212.7,0.948]
[1770149932005,0.0034238,2213.0,2211.5,1.13041731]
[1770149932242,0.00684759,2212.9,2211.6,0.948]
[1770149932414,0.00684759,2212.8,2211.8,11.5419]
[1770149933122,0.00684759,2212.8,2211.8,12.4899]
[1770149933319,0.00684759,2212.7,2211.8,0.948]
[1770149933712,0.00684759,2213.6,2211.9,0.1024]
[1770149934040,0.00684759,2213.3,2211.9,1.1126436]
[1770149934242,0.00684759,2214.3,2212.0,10.84175092]
[1770149934411,0.00684759,2214.1,2212.8,0.2335703]
[1770149934610,0.00684759,2214.5,2213.0,0.2335703]
[1770149934812,0.00684759,2214.3,2213.0,0.2335703]
[1770149935054,0.00684759,2214.1,2213.0,0.2335703]
[1770149935336,0.00684759,2214.2,2213.0,0.2335703]
[1770149935523,0.00684759,2214.3,2213.1,0.2335703]
[1770149935728,0.00684759,2214.2,2213.1,0.2335703]
[1770149936042,0.00684759,2214.3,2213.1,0.2335703]
[1770149936359,0.00684759,2214.3,2213.1,11.7754703]
[1770149936563,0.00684759,2215.2,2213.1,11.7754703]
[1770149936860,0.00684759,2215.2,2213.3,0.2335703]
[1770149937019,0.0011,2215.4,2213.2,11.31149812]
[1770149937020,0.0011,2215.4,2213.5,0.2335703]
[1770149937219,0.0011,2215.4,2213.7,0.2335703]
[1770149937449,0.0011,2215.4,2214.4,0.2335703]
[1770149937826,0.0011,2215.4,2214.3,1.12902497]
[1770149937827,0.00684759,2215.3,2214.3,0.2335703]
[1770149938028,0.0011,2215.4,2214.3,1.52055224]
[1770149938224,0.0011,2215.4,2214.2,1.1290479]
[1770149938435,0.0011,2215.4,2214.2,1.36264323]
[1770149938628,0.00794759,2215.4,2214.2,0.2335703]
[1770149938823,0.00794759,2215.4,2214.2,1.36260041]
[1770149939026,0.00794759,2215.4,2214.2,0.2335703]
[1770149939243,0.00794759,2215.4,2214.2,2.6531]
[1770149939448,0.00684759,2215.1,2213.9,11.5419]
[1770149939751,0.00684759,2215.3,2214.0,0.2335703]
[1770149939959,0.00684759,2215.2,2214.0,0.2335703]
[1770149940161,0.0011,2215.4,2214.0,0.2335703]
[1770149940456,0.0011,2215.4,2213.9,12.67112065]
[1770149940457,0.0011,2215.4,2214.5,0.2335703]
[1770149940771,1.07354104,2216.1,2214.7,0.2335703]
[1770149940939,0.97696204,2216.1,2214.7,0.2335703]
[1770149941140,0.97011445,2216.1,2214.7,0.2335703]
[1770149941444,0.00684759,2216.3,2216.2,0.09974139]
[1770149941744,0.00684759,2216.3,2214.7,12.90428764]
[1770149941745,0.00684759,2215.8,2214.7,12.4899]
[1770149941931,0.00684759,2215.9,2214.7,13.61871336]
[1770149942132,0.00684759,2215.2,2214.7,11.5419]
[1770149942468,0.00684759,2215.0,2213.5,11.5419]
[1770149942760,0.00684759,2215.9,2214.5,1.12888474]
[1770149943058,0.00684759,2215.9,2214.6,1.1815703]
[1770149943263,0.00684759,2215.9,2214.6,2.31042426]
[1770149943465,0.00684759,2215.9,2214.9,1.12871912]
[1770149943670,0.00684759,2215.9,2214.6,1.1815703]
[1770149943671,0.00684759,2215.7,2214.7,0.2335703]
[1770149943968,0.00684759,2215.7,2214.4,11.5419]
[1770149943969,0.00684759,2215.1,2214.4,11.5419]
[1770149944265,0.00684759,2215.3,2214.4,11.5419]
[1770149944572,0.00684759,2216.3,2214.4,2.37796204]
[1770149944733,0.00684759,2215.4,2214.4,0.947]
[1770149944932,0.00684759,2215.4,2214.4,2.07595822]
[1770149945129,0.00684759,2215.4,2214.1,0.2335703]
[1770149945333,0.00684759,2215.4,2214.4,0.947]
[1770149945560,0.00684759,2216.3,2214.4,2.07596347]
[1770149945739,0.00684759,2216.3,2214.5,1.82198265]
[1770149946067,0.00684759,2216.5,2214.7,0.2335703]
[1770149946277,0.00684759,2216.7,2215.0,0.2335703]
[1770149946456,0.00684759,2217.1,2215.2,0.2335703]
[1770149946657,0.00684759,2217.1,2215.1,12.47112641]
[1770149946658,0.00684759,2217.0,2215.6,0.2335703]
[1770149946870,0.00684759,2217.0,2215.4,2.30584991]
[1770149946871,0.00684759,2216.9,2215.7,0.92922641]
[1770149947081,0.00684759,2216.7,2215.3,0.2335703]
[1770149947383,0.00684759,2216.7,2215.6,2.30584991]
[1770149947586,0.00684759,2216.8,2215.7,0.93601858]
[1770149947870,0.00684759,2216.8,2215.8,0.93601858]
[1770149948072,0.00684759,2216.8,2215.9,0.93601858]
[1770149948277,0.00684759,2216.8,2215.6,2.30584991]
[1770149948278,0.00684759,2217.0,2216.0,3.24186849]
[1770149948569,0.00684759,2217.1,2216.1,3.24186849]
[1770149948774,1.25268078,2217.1,2216.2,0.93601858]
[1770149948976,1.24583319,2217.1,2216.3,0.93601858]
[1770149949293,0.10924759,2217.8,2215.8,3.05549368]
[1770149949294,12.45148435,2218.5,2217.0,2.30584991]
[1770149949505,12.45148435,2218.5,2217.1,2.37021436]
[1770149949506,0.00684759,2217.6,2217.1,2.37021436]
[1770149949635,6.2111756,2218.4,2216.6,3.81431608]
[1770149949839,1.69656848,2218.4,2216.8,3.81431608]
[1770149950076,0.00684759,2218.2,2216.7,3.81431608]
[1770149950241,0.00684759,2217.9,2217.2,3.81431608]
[1770149950440,0.00684759,2218.1,2217.3,3.81431608]
[1770149950636,0.00684759,2218.2,2217.3,3.81431608]
[1770149950946,0.00684759,2218.2,2216.6,1.1278223]
[1770149950947,0.00684759,2217.7,2216.9,3.98474156]
[1770149951152,0.00684759,2218.1,2216.9,3.98474156]
[1770149951356,0.00684759,2217.9,2216.6,5.35247709]
[1770149951544,0.00684759,2217.6,2216.6,5.35247709]
[1770149951792,0.00684759,2218.6,2216.6,7.01556572]
[1770149952068,0.00684759,2218.9,2216.6,7.01556572]
[1770149952069,12.45148435,2218.9,2216.7,18.37791013]
[1770149952270,0.00684759,2218.8,2216.9,0.2335703]
[1770149952439,0.00684759,2218.7,2216.9,0.2335703]
[1770149952835,0.00684759,2218.7,2217.9,1.59086926]
[1770149953071,13.29348435,2219.0,2217.9,1.59086926]
[1770149953276,1.33688078,2218.9,2217.8,1.59086926]
[1770149953477,0.00684759,2218.8,2217.8,1.59086926]
[1770149953689,1.33003319,2218.9,2218.1,1.59086926]
[1770149953864,0.1361659,2219.2,2218.3,1.59086926]
[1770149954173,0.1361659,2219.2,2218.4,1.59086926]
[1770149954581,0.00684759,2221.2,2218.9,1.59086926]
[1770149954744,0.00684759,2221.2,2219.6,1.59086926]
[1770149954745,0.00684759,2221.0,2219.6,1.59086926]
[1770149955078,0.00684759,2221.0,2218.8,0.947]
[1770149955079,0.00684759,2220.7,2219.5,1.59086926]
[1770149955248,0.00684759,2220.3,2218.9,1.59086926]
[1770149955443,0.00684759,2220.1,2218.8,1.59086926]
[1770149955961,0.00684759,2220.1,2218.6,1.59086926]
[1770149955962,0.00684759,2219.8,2218.6,1.59086926]
[1770149956162,12.44463676,2220.5,2218.6,1.59086926]
[1770149956363,1.24446368,2220.4,2218.9,1.59086926]
[1770149956680,0.00684759,2220.2,2218.7,1.59086926]
[1770149957081,0.00684759,2220.1,2218.5,13.13276926]
[1770149957383,0.00684759,2220.5,2218.6,0.2335703]
[1770149957547,0.00684759,2220.3,2218.7,1.59086926]
[1770149957877,0.00684759,2220.1,2218.6,1.59086926]
[1770149958077,0.00684759,2220.1,2218.1,12.4889]
[1770149958078,0.00684759,2219.8,2218.4,1.59086926]
[1770149958281,0.00684759,2220.1,2218.3,1.59086926]
[1770149958585,0.00684759,2220.1,2217.4,9.86224696]
[1770149958586,0.00684759,2219.6,2218.0,1.59086926]
[1770149958744,0.84784759,2219.5,2217.7,13.13276926]
[1770149958942,0.841,2219.8,2218.1,1.12708623]
[1770149959144,0.841,2219.8,2218.0,2.71800331]
[1770149959379,0.00684759,2219.7,2218.1,0.27180033]
[1770149959565,0.00684759,2219.6,2217.9,1.59086926]
[1770149959888,0.00684759,2218.9,2217.8,11.5419]
[1770149960087,0.00684759,2218.3,2217.8,11.5419]
[1770149960392,0.00684759,2217.8,2216.6,2.12611697]
[1770149960545,0.00684759,2217.8,2216.5,2.53686926]
[1770149960744,0.00684759,2218.2,2216.5,2.53686926]
[1770149960745,0.00684759,2219.9,2217.3,12.6133167]
[1770149960994,0.00684759,2219.9,2217.5,1.59086926]
[1770149960995,0.00684759,2219.4,2217.5,1.59086926]
[1770149961174,0.00684759,2219.1,2217.5,1.4204186]
[1770149961347,0.00684759,2218.7,2217.2,1.59086926]
[1770149961545,0.84984759,2219.0,2217.2,1.59086926]
[1770149961546,0.84984759,2219.0,2217.4,1.12744655]
[1770149961881,0.84884759,2219.5,2217.6,0.2335703]
[1770149962086,0.00684759,2219.4,2217.7,0.94178486]
[1770149962255,0.00684759,2219.7,2217.8,0.94178486]
[1770149962448,0.84884759,2219.5,2217.9,0.94178486]
[1770149962644,0.84884759,2219.5,2217.5,14.20418596]
[1770149962645,0.00684759,2219.0,2217.5,14.20418596]
[1770149962946,0.00684759,2219.3,2217.6,0.94413411]
[1770149963146,16.65269671,2219.8,2217.6,0.94413411]
[1770149963147,0.00684759,2220.0,2218.1,1.59086926]
[1770149963382,0.00684759,2220.0,2218.2,2.53500337]
[1770149963548,0.00684759,2220.0,2218.3,0.94413411]
[1770149963744,0.84784759,2219.9,2218.3,0.94413411]
[1770149964159,0.84784759,2219.9,2218.4,0.94413411]
[1770149964160,0.00684759,2219.8,2218.4,0.94413411]
[1770149964356,0.00684759,2219.7,2218.5,0.94413411]
[1770149964555,0.00684759,2219.8,2218.6,0.94413411]
[1770149964759,0.00684759,2219.8,2217.8,15.7455131]
[1770149964760,0.00684759,2219.7,2218.2,1.59086926]
[1770149964965,0.84784759,2219.9,2218.2,1.59086926]
[1770149964966,0.84784759,2219.9,2218.3,0.94632113]
[1770149965179,0.00684759,2219.8,2218.4,0.94632113]
[1770149965492,0.00684759,2219.8,2218.3,1.59086926]
[1770149965493,0.00684759,2219.6,2218.5,0.94632113]
[1770149965817,0.00684759,2218.9,2217.8,1.59086926]
[1770149965970,0.00684759,2218.9,2217.9,0.94816306]
[1770149966309,0.00684759,2219.2,2217.2,15.7455131]
[1770149966310,0.00684759,2219.3,2218.0,0.94816306]
[1770149966602,0.00684759,2219.2,2218.1,0.94816306]
[1770149966757,0.00684759,2218.6,2217.6,1.59086926]
[1770149966957,0.00684759,2218.6,2216.6,12.6133167]
[1770149966958,0.00684759,2218.6,2217.7,0.9499351]
[1770149967214,0.00684759,2218.1,2217.0,1.59086926]
[1770149967362,0.00684759,2218.1,2216.6,1.59086926]
[1770149967363,0.00684759,2217.7,2216.6,1.59086926]
[1770149967685,0.00684759,2217.7,2216.0,13.5593167]
[1770149967686,0.838,2217.9,2216.7,1.59086926]
[1770149967858,0.00684759,2218.1,2216.7,1.59086926]
[1770149968055,0.84484759,2218.1,2216.7,1.59086926]
[1770149968359,0.837,2218.1,2216.9,1.59086926]
[1770149968567,0.00684759,2218.3,2216.8,1.59086926]
[1770149968882,0.00684759,2217.7,2216.5,1.59086926]
[1770149969063,0.837,2217.7,2216.5,1.59086926]
[1770149969254,13.281534,2218.5,2216.1,3.1321964]
[1770149969255,0.837,2217.8,2216.7,1.59086926]
[1770149969755,0.837,2217.8,2216.6,1.59086926]
[1770149970460,1.96426442,2217.8,2216.6,1.59086926]
[1770149970661,0.00684759,2217.5,2216.3,1.59086926]
[1770149970897,0.64799172,2217.7,2216.2,1.59086926]
[1770149971199,12.14778583,2218.1,2216.3,1.59086926]
[1770149971200,1.13404074,2217.9,2216.3,1.59086926]
[1770149971383,0.836,2217.8,2216.4,1.59086926]
[1770149971584,0.836,2217.8,2216.3,1.59086926]
[1770149971900,0.836,2217.8,2215.7,1.58934183]
[1770149971901,0.00684759,2216.9,2215.7,1.58934183]
[1770149972196,0.84284759,2216.8,2215.4,0.001]
[1770149972498,0.00684759,2217.2,2215.4,0.001]
[1770149972499,0.00684759,2217.4,2215.4,12.6143167]
[1770149972703,0.835,2217.2,2215.5,1.26143167]
[1770149972900,0.00684759,2217.1,2215.5,1.26143167]
[1770149973201,0.00684759,2217.0,2215.5,1.26143167]
[1770149973938,1.13454843,2216.9,2215.4,0.001]
[1770149974075,4.51748905,2217.0,2215.4,0.001]
[1770149974076,1.1344976,2217.0,2215.4,0.001]
[1770149974460,1.13450746,2217.0,2215.4,0.001]
[1770149974677,0.00684759,2216.7,2215.4,0.001]
[1770149974968,0.00684759,2216.7,2215.7,0.001]
[1770149975492,0.00684759,2216.9,2215.7,0.001]
[1770149975685,0.834,2216.6,2215.7,0.001]
[1770149976205,1.13431825,2217.4,2215.7,0.001]
[1770149976387,2.16189517,2217.3,2215.7,0.001]
[1770149976778,1.32889517,2217.3,2215.7,0.001]
[1770149977077,0.00684759,2216.8,2215.7,0.001]
[1770149977289,0.00684759,2216.7,2215.7,0.001]
[1770149979588,0.832,2216.6,2215.8,0.95350086]
[1770149979780,0.832,2216.6,2215.7,0.001]
[1770149980104,0.00684759,2217.2,2215.8,0.95357616]
[1770149980313,0.832,2217.1,2215.9,0.95357616]
[1770149980482,0.832,2217.1,2215.7,0.001]
[1770149980680,0.00684759,2217.2,2215.8,0.95286723]
[1770149980879,0.832,2217.4,2215.9,0.95286723]
[1770149981092,0.832,2217.4,2216.0,0.95286723]
[1770149981392,1.13403997,2217.9,2215.7,12.6143167]
[1770149981393,0.832,2217.8,2216.1,13.56618393]
[1770149981702,0.00684759,2218.0,2216.2,2.30948562]
[1770149981886,0.831,2218.0,2216.3,3.33296845]
[1770149982090,0.831,2218.0,2216.4,13.56618393]
[1770149982290,0.831,2218.0,2216.5,0.95286723]
[1770149982506,0.831,2218.0,2216.6,0.95286723]
[1770149982706,0.831,2218.0,2216.7,0.95286723]
[1770149983020,0.831,2218.0,2216.6,1.18890906]
[1770149983021,0.00684759,2218.2,2216.8,0.95286723]
[1770149983184,0.83,2218.0,2216.9,0.95286723]
[1770149983383,0.83,2218.0,2216.6,1.18890906]
[1770149983704,0.83,2218.0,2216.7,0.9509417]
[1770149983917,0.83,2218.0,2216.4,12.6133167]
[1770149983918,0.83,2218.0,2216.8,0.9509417]
[1770149984091,0.83,2218.0,2216.6,1.18890906]
[1770149984292,0.00684759,2218.7,2216.7,2.14002179]
[1770149984609,0.00684759,2218.1,2216.8,0.95111273]
[1770149984782,0.00684759,2218.1,2216.7,1.18890906]
[1770149984783,0.00684759,2218.0,2216.9,0.95111273]
[1770149984982,0.00684759,2218.0,2216.4,14.99341792]
[1770149984983,0.00684759,2217.8,2216.5,1.18890906]
[1770149985204,0.00684759,2217.6,2216.6,0.95071058]
[1770149985391,0.00684759,2217.7,2216.4,1.18890906]
[1770149985392,0.00684759,2217.9,2216.7,0.95183185]
[1770149985592,16.96178583,2217.7,2216.4,1.15467111]
[1770149985796,0.00684759,2216.4,2215.4,0.001]
[1770149986118,0.00684759,2216.8,2214.9,12.6133167]
[1770149986119,0.1024,2217.2,2215.2,12.6133167]
[1770149986319,1.12747298,2217.4,2215.2,12.6133167]
[1770149986616,1.12747298,2217.4,2215.0,4.51466199]
[1770149986617,1.39572592,2217.3,2215.4,12.6133167]
[1770149986988,0.56372592,2217.3,2215.4,12.6133167]
[1770149987191,1.39572592,2217.3,2215.4,12.6133167]
[1770149987522,6.20972592,2217.3,2215.4,12.6133167]
[1770149988017,7.33724954,2217.3,2215.9,0.001]
[1770149988221,1.18470389,2217.2,2215.9,0.001]
[1770149989325,0.0011,2217.8,2216.3,12.6133167]
[1770149989492,0.0011,2217.8,2216.6,12.6133167]
[1770149992015,0.00684759,2217.7,2216.6,12.6133167]
[1770149992216,0.0011,2217.8,2216.6,12.6133167]
[1770149992629,0.0011,2217.8,2216.6,13.96924837]
[1770149992803,0.0011,2217.8,2216.6,12.6133167]
[1770149994191,0.00684759,2217.5,2216.1,12.83666234]
[1770149994506,0.00794759,2217.8,2216.1,12.83666234]
[1770149994710,0.0011,2217.8,2216.1,12.83666234]
[1770149995124,0.0011,2217.8,2216.1,15.96885874]
[1770149995327,0.0011,2217.8,2216.3,12.91353151]
[1770149997008,0.0011,2217.8,2216.3,12.90783151]
[1770149997800,0.0011,2217.8,2216.4,0.95918423]
[1770149998016,0.0011,2217.8,2216.5,0.95918423]
[1770149998333,0.0011,2217.8,2216.6,0.95918423]
[1770149998522,0.0011,2217.8,2216.7,0.95918423]
[1770149998832,0.0011,2217.8,2216.8,0.95918423]
[1770149998999,0.0011,2217.8,2215.9,0.001]
[1770149999000,0.00684759,2217.3,2215.9,3.1331964]
[1770149999195,0.00684759,2217.4,2215.9,0.001]
[1770149999422,0.83184759,2217.4,2215.9,0.001]
[1770149999609,0.00684759,2216.9,2215.9,0.001]
[1770149999797,0.00684759,2217.1,2215.9,0.001]
[1770149999999,1.13434858,2217.3,2215.9,0.001]
[1770150000295,1.13414166,2217.7,2215.9,12.91453151]
[1770150000502,0.0011,2217.8,2216.0,0.946]
[1770150000503,0.00684759,2217.6,2216.0,0.946]
[1770150000700,0.00684759,2217.5,2216.1,12.91353151]
[1770150001003,0.00684759,2217.5,2215.6,0.001]
[1770150001004,0.00684759,2216.6,2215.6,0.001]
[1770150001204,0.00684759,2216.7,2215.6,0.001]
[1770150001414,0.00684759,2216.5,2215.6,0.001]
[1770150001732,0.00684759,2216.7,2214.8,13.85953151]
[1770150001733,0.00684759,2216.6,2214.8,13.85953151]
[1770150001918,0.00684759,2216.7,2216.0,0.001]
[1770150002297,0.10924759,2217.0,2216.0,0.001]
[1770150002298,0.00684759,2217.0,2216.0,0.001]
[1770150002850,0.0011,2217.6,2216.0,12.91453151]
[1770150003143,0.0011,2217.6,2216.3,14.51517463]
[1770150003302,0.0011,2217.6,2216.5,12.91353151]
[1770150003632,0.0011,2217.6,2216.5,14.51517463]
[1770150003832,0.0011,2217.6,2216.6,14.51517463]
[1770150004034,0.23572702,2219.1,2216.8,14.51517463]
[1770150004209,0.00684759,2219.3,2217.6,12.91353151]
[1770150004533,0.00684759,2219.4,2217.0,3.1321964]
[1770150004534,0.00684759,2219.4,2217.7,15.45661463]
[1770150004827,0.00684759,2219.4,2217.7,13.85953151]
[1770150005028,0.00684759,2219.5,2217.7,13.85953151]
[1770150005331,8.70815164,2219.4,2217.2,2.42548423]
[1770150005534,8.70815164,2219.4,2216.0,0.001]
[1770150005535,9.79644573,2217.0,2216.0,0.001]
[1770150005739,0.00684759,2216.9,2215.3,3.19644154]
[1770150005899,0.829,2217.2,2215.3,3.19644154]
[1770150006101,1.22999911,2217.1,2215.3,3.19644154]
[1770150006301,2.42051268,2217.5,2215.3,3.19644154]
[1770150006302,0.69506264,2217.0,2215.3,4.64458708]
[1770150006496,1.12739889,2217.5,2215.4,12.91353151]
[1770150006698,0.9680852,2217.4,2215.4,12.91353151]
[1770150006923,2.52291268,2217.9,2215.3,4.64459524]
[1770150006924,1.21040567,2217.8,2215.5,16.10997305]
[1770150007130,2.42051268,2218.1,2215.7,12.91353151]
[1770150007131,2.33750181,2218.1,2215.7,12.91353151]
[1770150007450,0.96805284,2218.0,2215.8,16.10997305]
[1770150007603,1.54096114,2217.9,2215.9,4.80743885]
[1770150007803,0.96805284,2217.8,2215.9,4.80743885]
[1770150008100,1.12729404,2217.7,2215.9,4.80743885]
[1770150008318,6.6874535,2217.8,2215.9,1.61099731]
[1770150008319,0.96805284,2217.6,2215.9,1.61099731]
[1770150008517,2.33768596,2217.8,2216.0,3.19644154]
[1770150008713,1.68607762,2217.7,2216.0,3.19644154]
[1770150008917,0.96836882,2217.6,2216.0,3.19644154]
[1770150009319,0.7177088,2217.7,2216.0,3.19644154]
[1770150009320,0.96836882,2217.5,2216.0,3.19644154]
[1770150009522,1.21040567,2217.4,2216.0,3.19644154]
[1770150009815,2.17877449,2217.3,2216.0,3.19644154]
[1770150010008,1.34763369,2217.2,2216.0,3.19644154]
[1770150010202,0.37926487,2217.2,2216.0,3.19644154]
[1770150010533,1.12734487,2217.6,2216.0,3.19644154]
[1770150010717,0.96877287,2217.5,2216.0,3.19644154]
[1770150010919,1.21040567,2217.5,2216.0,3.19644154]
[1770150011118,2.17917854,2217.5,2216.0,3.19644154]
[1770150012032,2.09621942,2217.4,2216.0,3.19644154]
[1770150012234,1.750414,2217.3,2216.0,3.19644154]
[1770150012428,0.96877287,2217.2,2216.0,3.19644154]
[1770150012943,0.96877287,2217.2,2216.1,3.19644154]
[1770150013109,0.96877287,2217.2,2215.9,3.19644154]
[1770150013529,1.21040567,2217.1,2215.9,3.19644154]
[1770150014040,1.12770084,2216.9,2215.9,3.19644154]
[1770150014248,3.3070725,2216.9,2214.8,0.946]
[1770150014411,0.96896599,2216.8,2214.8,13.85953151]
[1770150014716,0.96896599,2216.7,2214.8,13.85953151]
[1770150014919,1.12770084,2216.9,2214.9,16.10997305]
[1770150015126,1.68389549,2216.8,2215.0,1.70559731]
[1770150015326,0.96891272,2216.7,2215.0,1.70559731]
[1770150015535,0.71498277,2216.8,2215.6,0.001]
[1770150015714,0.30091785,2217.0,2215.6,0.001]
[1770150015911,0.0011,2217.3,2215.8,12.91353151]
[1770150016114,0.0011,2217.3,2216.0,12.91353151]
[1770150016337,13.83472318,2218.5,2216.2,12.91353151]
[1770150016543,0.96817724,2218.4,2216.2,12.91353151]
[1770150016738,0.96817724,2218.4,2216.3,3.19534154]
[1770150016739,2.17858291,2218.4,2216.3,3.19534154]
[1770150016953,1.21040567,2218.1,2216.4,1.6108873]
[1770150017941,1.83756829,2218.3,2216.5,16.10887305]
[1770150018118,0.0011,2218.4,2216.8,12.91353151]
[1770150018438,0.0011,2218.4,2217.0,12.91353151]
[1770150018637,2.74033479,2219.4,2217.0,12.91353151]
[1770150018638,1.21040567,2219.4,2217.2,12.91353151]
[1770150018847,12.62431751,2220.0,2217.4,15.31842911]
[1770150018848,1.21040567,2219.8,2217.4,15.31842911]
[1770150019156,1.21040567,2219.8,2217.2,10.03001603]
[1770150019157,0.96745554,2219.7,2217.6,12.91353151]
[1770150019319,1.12618822,2219.9,2217.6,12.91353151]
[1770150019519,0.96625443,2219.8,2217.6,12.91353151]
[1770150019717,0.96625443,2219.7,2217.7,3.19534154]
[1770150020038,1.12637981,2219.5,2217.7,3.19534154]
[1770150020234,0.56317288,2219.4,2217.7,5.05401314]
[1770150020551,4.50519208,2219.7,2217.7,5.05401314]
[1770150020552,1.22871134,2219.7,2217.7,5.05401314]
[1770150020728,0.96561128,2219.6,2217.7,5.05401314]
[1770150020921,1.12618011,2219.9,2217.8,12.40776566]
[1770150021248,1.12618621,2219.9,2217.9,3.19534154]
[1770150021548,14.58247645,2220.0,2217.9,15.6031072]
[1770150021750,1.45824765,2219.9,2218.0,13.96807638]